lending/lending_fUSD_20250430
["ID","MTS","AMOUNT","RATE_DAILY","PERIOD"]
[359448700,1746022244473,-257.38032061,0.00037808,12]
[359448701,1746022244483,-450.0,0.00037808,12]
[359448702,1746022244493,-450.0,0.00037808,12]
[359448703,1746022244502,-450.0,0.00037808,12]
[359448704,1746022244511,-450.0,0.00037808,12]
[359448705,1746022244521,-450.0,0.00037808,12]
[359448706,1746022244531,-450.0,0.00037808,12]
[359448707,1746022244541,-450.0,0.00037808,12]
[359448708,1746022244551,-450.0,0.00037808,12]
[359448709,1746022244561,-450.0,0.00037808,12]
[359448710,1746022244570,-983.95,0.00037808,12]
[359448711,1746022244580,-450.0,0.00037808,12]
[359448712,1746022244590,-450.0,0.00037808,12]
[359448713,1746022244600,-450.0,0.00037808,12]
[359448714,1746022244610,-450.0,0.00037808,12]
[359448715,1746022244620,-450.0,0.00037808,12]
[359448716,1746022244629,-450.0,0.00037808,12]
[359448717,1746022244638,-450.0,0.00037808,12]
[359448718,1746022244647,-450.0,0.00037808,12]
[359448719,1746022244657,-450.0,0.00037808,12]
[359448720,1746022244666,-450.0,0.00037808,12]
[359448721,1746022244676,-450.0,0.00037808,12]
[359448722,1746022244686,-450.0,0.00037808,12]
[359448723,1746022244695,-450.0,0.00037808,12]
[359448724,1746022244705,-450.0,0.00037808,12]
[359448725,1746022244714,-450.0,0.00037808,12]
[359448726,1746022244724,-450.0,0.00037808,12]
[359448727,1746022244734,-450.0,0.00037808,12]
[359448728,1746022244743,-450.0,0.00037808,12]
[359448729,1746022244753,-250.72998569,0.00037808,12]
[359448730,1746022244763,-507.41149774,0.00037808,12]
[359448731,1746022244772,-506.93158951,0.00037808,12]
[359448732,1746022244782,-450.0,0.00037808,12]
[359448733,1746022244791,-450.0,0.00037808,12]
[359448734,1746022244802,-450.0,0.00037808,12]
[359448735,1746022244812,-450.0,0.00037808,12]
[359448736,1746022244823,-450.0,0.00037808,12]
[359448737,1746022244832,-502.74478166,0.00037808,12]
[359448738,1746022244843,-213.15010526,0.00037808,12]
[359448739,1746022244852,-450.0,0.00037808,12]
[359448740,1746022244863,-507.05893722,0.00037808,12]
[359448741,1746022244873,-504.92494966,0.00037808,12]
[359448742,1746022244882,-450.0,0.00037808,12]
[359448743,1746022244892,-450.0,0.00037808,12]
[359448744,1746022244902,-450.0,0.00037808,12]
[359448745,1746022244912,-450.0,0.00037808,12]
[359448746,1746022244921,-595.49114619,0.00037808,12]
[359448747,1746022244931,-450.0,0.00037808,12]
[359448748,1746022244941,-450.0,0.00037808,12]
[359448749,1746022244951,-450.0,0.00037808,12]
[359448750,1746022244961,-506.73524621,0.00037808,12]
[359448751,1746022244971,-450.0,0.00037808,12]
[359448752,1746022244981,-450.0,0.00037808,12]
[359448753,1746022244990,-261.00714368,0.00037808,12]
[359448754,1746022245000,-508.62934066,0.00037808,12]
[359448755,1746022245009,-450.0,0.00037808,12]
[359448756,1746022245019,-450.0,0.00037808,12]
[359448757,1746022245029,-450.0,0.00037808,12]
[359448758,1746022245039,-450.0,0.00037808,12]
[359448759,1746022245049,-486.9828451,0.00037808,12]
[359448760,1746022245059,-547.4442732,0.00037808,12]
[359448761,1746022245069,-177.91380743,0.00037808,12]
[359448762,1746022245081,-450.0,0.00037808,12]
[359448763,1746022245091,-500.0,0.00037808,12]
[359448764,1746022245100,-450.0,0.00037808,12]
[359448765,1746022245114,-450.0,0.00037808,12]
[359448766,1746022245124,-450.0,0.00037808,12]
[359448767,1746022245133,-450.0,0.00037808,12]
[359448768,1746022245142,-507.86475724,0.00037808,12]
[359448769,1746022245152,-450.0,0.00037808,12]
[359448770,1746022245161,-450.0,0.00037808,12]
[359448771,1746022245171,-450.0,0.00037808,12]
[359448772,1746022245180,-450.0,0.00037808,12]
[359448773,1746022245190,-450.0,0.00037808,2]
[359448774,1746022245199,-450.0,0.00037808,12]
[359448775,1746022245210,-450.0,0.00037808,12]
[359448776,1746022245220,-450.0,0.00037808,12]
[359448778,1746022245230,-450.0,0.00037808,12]
[359448780,1746022245240,-504.27289461,0.00037808,12]
[359448782,1746022245250,-450.0,0.00037808,12]
[359448785,1746022245259,-450.0,0.00037808,12]
[359448788,1746022245269,-450.0,0.00037808,12]
[359448791,1746022245279,-450.0,0.00037808,12]
[359448794,1746022245288,-450.0,0.00037808,12]
[359448797,1746022245298,-472.21355363,0.00037808,12]
[359448799,1746022245307,-450.0,0.00037808,12]
[359448802,1746022245317,-450.0,0.00037808,12]
[359448805,1746022245328,-573.51356912,0.00037808,12]
[359448808,1746022245338,-450.0,0.00037808,12]
[359448811,1746022245348,-450.0,0.00037808,12]
[359448814,1746022245359,-450.0,0.00037808,12]
[359448817,1746022245369,-450.0,0.00037808,12]
[359448819,1746022245379,-474.4,0.00037808,12]
[359448821,1746022245388,-450.0,0.00037808,12]
[359448823,1746022245398,-450.0,0.00037808,12]
[359448826,1746022245408,-450.0,0.00037808,12]
[359448828,1746022245417,-511.83990601,0.00037808,12]
[359448831,1746022245426,-450.0,0.00037808,12]
[359448834,1746022245436,-524.11258772,0.00037808,12]
[359448837,1746022245445,-450.0,0.00037808,12]
[359448840,1746022245454,-450.0,0.00037808,12]
[359448843,1746022245464,-450.0,0.00037808,12]
[359448846,1746022245473,-450.0,0.00037808,12]
[359448849,1746022245482,-1000.0,0.00037808,12]
[359448852,1746022245491,-450.0,0.00037808,12]
[359448854,1746022245501,-503.40939563,0.00037808,12]
[359448856,1746022245510,-450.0,0.00037808,12]
[359448857,1746022245519,-450.0,0.00037808,12]
[359448859,1746022245529,-450.0,0.00037808,12]
[359448862,1746022245539,-450.0,0.00037808,12]
[359448864,1746022245551,-450.0,0.00037808,12]
[359448866,1746022245561,-450.0,0.00037808,12]
[359448867,1746022245570,-450.0,0.00037808,12]
[359448869,1746022245579,-542.65368756,0.00037808,12]
[359448870,1746022245588,-450.0,0.00037808,12]
[359448872,1746022245597,-450.0,0.00037808,12]
[359448874,1746022245607,-450.0,0.00037808,12]
[359448875,1746022245617,-450.0,0.00037808,12]
[359448877,1746022245627,-450.0,0.00037808,12]
[359448878,1746022245636,-514.87178478,0.00037808,12]
[359448880,1746022245645,-450.0,0.00037808,12]
[359448882,1746022245655,-450.0,0.00037808,12]
[359448883,1746022245664,-450.0,0.00037808,12]
[359448885,1746022245674,-450.0,0.00037808,12]
[359448886,1746022245683,-450.0,0.00037808,12]
[359448888,1746022245693,-450.0,0.00037808,12]
[359448890,1746022245703,-450.0,0.00037808,12]
[359448892,1746022245712,-450.0,0.00037808,12]
[359448893,1746022245721,-450.0,0.00037808,12]
[359448895,1746022245730,-450.0,0.00037808,12]
[359448896,1746022245740,-505.71794473,0.00037808,12]
[359448898,1746022245750,-450.0,0.00037808,12]
[359448900,1746022245760,-450.0,0.00037808,12]
[359448902,1746022245769,-500.0,0.00037808,12]
[359448903,1746022245780,-450.0,0.00037808,12]
[359448905,1746022245796,-450.0,0.00037808,12]
[359448907,1746022245808,-450.0,0.00037808,12]
[359448908,1746022245817,-450.0,0.00037808,12]
[359448910,1746022245827,-511.91258655,0.00037808,12]
[359448911,1746022245837,-450.0,0.00037808,12]
[359448913,1746022245847,-450.0,0.00037808,12]
[359448915,1746022245856,-450.0,0.00037808,12]
[359448916,1746022245869,-450.0,0.00037808,12]
[359448918,1746022245880,-450.0,0.00037808,12]
[359448919,1746022245889,-513.65264512,0.00037808,12]
[359448920,1746022245898,-450.0,0.00037808,12]
[359448921,1746022245908,-450.0,0.00037808,12]
[359448922,1746022245917,-450.0,0.00037808,12]
[359448923,1746022245927,-450.0,0.00037808,12]
[359448924,1746022245936,-450.0,0.00037808,12]
[359448925,1746022245945,-555.1454023,0.00037808,12]
[359448926,1746022245955,-450.0,0.00037808,12]
[359448927,1746022245964,-450.0,0.00037808,12]
[359448928,1746022245973,-450.0,0.00037808,12]
[359448929,1746022245983,-450.0,0.00037808,12]
[359448930,1746022245992,-450.0,0.00037808,12]
[359448931,1746022246002,-450.0,0.00037808,12]
[359448932,1746022246011,-450.0,0.00037808,12]
[359448933,1746022246020,-500.59207765,0.00037808,12]
[359448935,1746022246030,-450.0,0.00037808,12]
[359448937,1746022246039,-450.0,0.00037808,12]
[359448939,1746022246049,-590.5311637,0.00037808,12]
[359448940,1746022246059,-450.0,0.00037808,12]
[359448941,1746022246068,-450.0,0.00037808,12]
[359448942,1746022246077,-450.0,0.00037808,12]
[359448943,1746022246087,-450.0,0.00037808,12]
[359448944,1746022246097,-450.0,0.00037808,12]
[359448945,1746022246107,-450.0,0.00037808,12]
[359448946,1746022246122,-539.49918008,0.00037808,12]
[359448947,1746022246132,-173.42806469,0.00037808,12]
[359448949,1746022246142,-450.0,0.00037808,12]
[359448950,1746022246152,-450.0,0.00037808,12]
[359448951,1746022246162,-206.81912537,0.00037808,12]
[359448952,1746022246171,-450.0,0.00037808,12]
[359448954,1746022246181,-450.0,0.00037808,12]
[359448955,1746022246190,-450.0,0.00037808,12]
[359448957,1746022246200,-450.0,0.00037808,12]
[359448959,1746022246210,-450.0,0.00037808,12]
[359448960,1746022246219,-541.08491608,0.00037808,12]
[359448961,1746022246229,-450.0,0.00037808,12]
[359448962,1746022246238,-450.0,0.00037808,12]
[359448963,1746022246247,-450.0,0.00037808,12]
[359448964,1746022246257,-450.0,0.00037808,12]
[359448965,1746022246266,-450.0,0.00037808,12]
[359448966,1746022246276,-450.0,0.00037808,12]
[359448967,1746022246285,-450.0,0.00037808,12]
[359448968,1746022246294,-450.0,0.00037808,12]
[359448969,1746022246303,-253.05315069,0.00037808,12]
[359448970,1746022246313,-450.0,0.00037808,12]
[359448971,1746022246322,-450.0,0.00037808,12]
[359448972,1746022246331,-450.0,0.00037808,12]
[359448973,1746022246340,-450.0,0.00037808,12]
[359448974,1746022246349,-450.0,0.00037808,12]
[359448975,1746022246362,-531.39949321,0.00037808,12]
[359448976,1746022246372,-586.60118094,0.00037808,12]
[359448977,1746022246381,-450.0,0.00037808,12]
[359448978,1746022246391,-450.0,0.00037808,12]
[359448979,1746022246402,-450.0,0.00037808,12]
[359448980,1746022246411,-546.13807816,0.00037808,12]
[359448981,1746022246420,-450.0,0.00037808,12]
[359448982,1746022246430,-572.93314606,0.00037808,12]
[359448983,1746022246439,-534.45584963,0.00037808,12]
[359448984,1746022246448,-450.0,0.00037808,8]
[359448985,1746022246458,-460.47911879,0.00037808,12]
[359448986,1746022246467,-450.0,0.00037808,12]
[359448987,1746022246477,-450.0,0.00037808,12]
[359448988,1746022246486,-450.0,0.00037808,12]
[359448989,1746022246496,-450.0,0.00037808,12]
[359448990,1746022246507,-450.0,0.00037808,12]
[359448991,1746022246516,-450.0,0.00037808,12]
[359448992,1746022246527,-450.0,0.00037808,12]
[359448993,1746022246538,-450.0,0.00037808,12]
[359448994,1746022246547,-450.0,0.00037808,12]
[359448995,1746022246558,-450.0,0.00037808,12]
[359448996,1746022246568,-515.81712522,0.00037808,12]
[359448997,1746022246578,-583.70117328,0.00037808,12]
[359448998,1746022246588,-450.0,0.00037808,12]
[359448999,1746022246597,-450.0,0.00037808,12]
[359449000,1746022246607,-450.0,0.00037808,12]
[359449001,1746022246618,-73485.8300529,0.00037808,7]
[359449002,1746022246644,-6567.2815,0.00037808,7]
[359449003,1746022246792,-10022.57331556,0.00037808,7]
[359449004,1746022246807,-8863.86264587,0.00037808,7]
[359449005,1746022246820,-20197.003169,0.00037808,7]
[359449006,1746022246831,-6753.84631209,0.00037808,7]
[359449007,1746022246842,-1125.432,0.00037808,7]
[359449008,1746022246853,-340.21988228,0.00037808,7]
[359449009,1746022246867,-753.44723094,0.00037808,7]
[359449010,1746022246885,-2394.59247503,0.00037808,7]
[359449011,1746022246901,-24423.84141633,0.00037808,7]
[359449012,1746022246910,-450.0,0.00037808,12]
[359449013,1746022246919,-633.77,0.00037808,2]
[359449014,1746022246929,-450.0,0.00037808,12]
[359449015,1746022246938,-450.0,0.00037808,12]
[359449016,1746022246948,-450.0,0.00037808,3]
[359449017,1746022246957,-450.0,0.00037808,12]
[359449018,1746022246966,-450.0,0.00037808,12]
[359449019,1746022246975,-502.46638056,0.00037808,12]
[359449020,1746022246984,-450.0,0.00037808,12]
[359449021,1746022246993,-450.0,0.00037808,12]
[359449022,1746022247002,-450.0,0.00037808,12]
[359449023,1746022247012,-450.0,0.00037808,12]
[359449024,1746022247021,-450.0,0.00037808,12]
[359449025,1746022247030,-457.36798403,0.00037808,12]
[359449026,1746022247039,-450.0,0.00037808,12]
[359449027,1746022247049,-450.0,0.00037808,12]
[359449028,1746022247059,-450.0,0.00037808,12]
[359449029,1746022247068,-450.0,0.00037808,12]
[359449030,1746022247078,-450.0,0.00037808,12]
[359449031,1746022247087,-450.0,0.00037808,12]
[359449032,1746022247097,-450.0,0.00037808,12]
[359449033,1746022247106,-450.0,0.00037808,12]
[359449034,1746022247118,-450.0,0.00037808,12]
[359449035,1746022247259,-450.0,0.00037808,12]
[359449036,1746022247270,-450.0,0.00037808,12]
[359449037,1746022247280,-1336.24,0.00037808,12]
[359449038,1746022247289,-450.0,0.00037808,12]
[359449039,1746022247298,-450.0,0.00037808,12]
[359449040,1746022247307,-450.0,0.00037808,12]
[359449041,1746022247317,-450.0,0.00037808,12]
[359449042,1746022247326,-570.24934197,0.00037873,3]
[359449043,1746022247336,-152.0,0.00037951,4]
[359449044,1746022247345,-662.8890449,0.00037974,4]
[359449045,1746022247355,-24712.8986178,0.00038062,4]
[359449046,1746022247367,-20852.85595124,0.00038062,4]
[359449047,1746022247380,-1303.11597549,0.00038062,4]
[359449048,1746022247439,-886.72,0.00026827,2]
[359449049,1746022247451,-282.224,0.00026827,2]
[359449050,1746022247461,-176.51281847,0.000329,2]
[359449051,1746022247471,-470.0,0.00037808,12]
[359449052,1746022247482,-1214.06322153,0.00038062,4]
[359449053,1746022247494,-7414.13445714,0.00038062,4]
[359449054,1746022247504,-1956.86554286,0.00038072,4]
[359449055,1746022247520,-2051.0,0.00038072,4]
[359449056,1746022247533,-3295.54654999,0.00038072,4]
[359449057,1746022247544,-5547.0936,0.00038072,4]
[359449058,1746022247555,-443.21587332,0.00038072,4]
[359449059,1746022247566,-7550.16227553,0.00038072,4]
[359449060,1746022247578,-78007.7106294,0.00038072,4]
[359449061,1746022247587,-15592.28937061,0.00038072,4]
[359449062,1746022247600,-10420.26944744,0.00038072,4]
[359449063,1746022247619,-1192.84324285,0.00038072,4]
[359449064,1746022247631,-1185.81679519,0.00038072,4]
[359449065,1746022247647,-663.158519,0.00038072,4]
[359449066,1746022322055,200.0,0.00029551,117]
[359449067,1746022322115,200.0,0.00030967,117]
[359449068,1746022490581,158.3,0.00016712,2]
[359449069,1746022518815,20000.0,0.0003,120]
[359449070,1746022715389,1000.0,0.00032875,60]
[359449071,1746023108118,1841.7,0.0002,2]
[359449072,1746023108150,2000.0,0.0002,2]
[359449073,1746023108177,2000.0,0.0002,2]
[359449074,1746023108204,2000.0,0.0002,2]
[359449075,1746023108229,2000.0,0.0002,2]
[359449076,1746023108252,2000.0,0.0002,2]
[359449077,1746023108319,2000.0,0.0002,2]
[359449078,1746023108380,2000.0,0.0002,2]
[359449079,1746023108451,2000.0,0.0002,2]
[359449080,1746023108496,2000.0,0.0002,2]
[359449081,1746023108563,2000.0,0.0002,2]
[359449082,1746023108626,2000.0,0.0002,2]
[359449083,1746023108652,2000.0,0.0002,2]
[359449084,1746023108707,2000.0,0.0002,2]
[359449085,1746023110616,1631.21617042,0.000154,2]
[359449086,1746023112972,1200.0,0.00032877,60]
[359449087,1746023136464,1368.78382958,9e-05,2]
[359449088,1746023136486,3000.0,9e-05,2]
[359449089,1746023136508,702.02261937,9e-05,2]
[359449090,1746023167592,1777.01192313,8e-05,2]
[359449091,1746023188379,508.25,0.000328,60]
[359449092,1746023190226,520.9654575,0.00015,2]
[359449093,1746023190248,1456.66476174,0.00015,2]
[359449094,1746023208060,508.25,0.000328,60]
[359449095,1746023220810,508.25,0.000328,60]
[359449096,1746023237968,508.22,0.000328,60]
[359449098,1746023252879,508.24,0.000328,60]
[359449099,1746023259041,508.25,0.000328,60]
[359449100,1746023265240,508.22,0.000328,60]
[359449101,1746023272573,508.24,0.000328,60]
[359449102,1746023275356,1543.33523826,0.0001,2]
[359449103,1746023275377,3000.0,0.0001,2]
[359449104,1746023275398,3000.0,0.0001,2]
[359449105,1746023275419,3000.0,0.0001,2]
[359449106,1746023275440,1618.29645855,0.0001,2]
[359449107,1746023278115,508.25,0.000328,60]
[359449108,1746023283508,508.25,0.000328,60]
[359449109,1746023290222,508.24,0.000328,60]
[359449110,1746023293268,1381.70354145,0.0001439,2]
[359449111,1746023293292,618.29645855,0.0001439,2]
[359449113,1746023294745,200.0,0.0001634,2]
[359449114,1746023298592,508.2498,0.000328,60]
[359449116,1746023306852,508.25,0.000328,60]
[359449117,1746023314401,508.25,0.000328,60]
[359449119,1746023323854,2181.70354145,0.00013368,2]
[359449120,1746023323880,3000.0,0.00013368,2]
[359449121,1746023323907,2226.38586639,0.00013368,2]
[359449130,1746023356502,508.25,0.000328,60]
[359449131,1746023373246,164.21,0.00016958,2]
[359449132,1746023390362,508.25,0.000328,60]
[359449147,1746023409959,508.25,0.000328,60]
[359449148,1746023419868,508.25,0.000328,60]
[359449149,1746023430535,508.25,0.000328,60]
[359449172,1746023431773,-449.642352,0.00019651,2]
[359449173,1746023431783,-200.0,0.0001975,2]
[359449174,1746023431793,-250.0,0.0001975,2]
[359449175,1746023431803,-250.307628,0.000198,2]
[359449176,1746023431815,-102.7180089,0.000198,2]
[359449177,1746023431825,-300.0,0.00019879,2]
[359449178,1746023431836,-300.0,0.00019879,2]
[359449179,1746023431846,-297.2828611,0.00019879,2]
[359449180,1746023431858,-902.7171389,0.00019879,2]
[359449181,1746023431868,-300.0,0.00019879,2]
[359449182,1746023431877,-8206.1828611,0.0001988,2]
[359449183,1746023431889,-1998.00196194,0.0001988,2]
[359449184,1746023431904,-1755.3,0.0001988,2]
[359449185,1746023431916,-641.60804426,0.0001988,2]
[359449186,1746023431929,-1246.71442205,0.0001988,2]
[359449207,1746023437642,-12355.24611089,0.0001988,2]
[359449208,1746023437727,-26067.67951283,0.0001988,2]
[359449209,1746023437736,-368.38824248,0.000199,2]
[359449210,1746023437746,-4812.68764585,0.000199,2]
[359449211,1746023437755,-168.26252116,0.000199,2]
[359449212,1746023437764,-188.59597844,0.000199,3]
[359449213,1746023437774,-701.08700488,0.000199,2]
[359449214,1746023437783,-719.54724224,0.000199,2]
[359449215,1746023437793,-189.95194323,0.000199,2]
[359449216,1746023437803,-272.75354035,0.000199,2]
[359449217,1746023437812,-17184.17649147,0.000199,2]
[359449218,1746023437823,-3695.65383051,0.000199,2]
[359449219,1746023437832,-334.84497798,0.000199,2]
[359449220,1746023437843,-12500.0,0.000199,2]
[359449221,1746023437853,-272.7535403,0.00019902,2]
[359449222,1746023437863,-272.7535403,0.00019903,2]
[359449223,1746023437872,-719.54724222,0.00019905,2]
[359449224,1746023437881,-272.7535403,0.00019905,2]
[359449225,1746023437890,-3695.6538305,0.00019905,2]
[359449226,1746023437899,-272.7535403,0.00019907,2]
[359449227,1746023437909,-272.7535403,0.00019908,2]
[359449228,1746023437919,-719.54724222,0.0001991,2]
[359449230,1746023437930,-3695.6538305,0.0001991,2]
[359449231,1746023437940,-272.7535403,0.0001991,2]
[359449232,1746023437949,-500.0,0.00019973,2]
[359449233,1746023437959,-500.0,0.00019973,2]
[359449235,1746023437968,-504.93419582,0.00019973,2]
[359449237,1746023437978,-385.16450765,0.00019973,2]
[359449239,1746023437988,-269.78704286,0.0001999,2]
[359449241,1746023437998,-500.0,0.00019999,2]
[359449243,1746023438007,-150.0,0.00019999,2]
[359449245,1746023438017,-150.0,0.00019999,2]
[359449247,1746023438026,-150.0,0.00019999,2]
[359449249,1746023438036,-150.0,0.00019999,2]
[359449251,1746023438046,-168.47784832,0.00019999,2]
[359449253,1746023438056,-4737995.71956369,0.0002,2]
[359449331,1746023438813,508.25,0.000328,60]
[359449421,1746023439848,-1873.9655343,0.0002,2]
[359449424,1746023439872,-472.837485,0.0002,2]
[359449428,1746023439900,-5400581.73554368,0.0002,2]
[359449446,1746023440065,-3814.84965623,0.0002,2]
[359449464,1746023440245,-447.72946,0.0002,2]
[359449467,1746023440257,-285.3450233,0.0002,2]
[359449750,1746023443283,-713.66294995,0.0002,2]
[359449752,1746023443294,-91011.29795913,0.0002,2]
[359449754,1746023443306,-18786.01964635,0.0002,2]
[359449756,1746023443318,-560.99050412,0.0002,2]
[359449763,1746023443382,-213703.57388685,0.0002,2]
[359449767,1746023443407,-753104.53307873,0.0002,2]
[359450004,1746023445679,-3575.76929492,0.0002,2]
[359450023,1746023445853,-1083.09998,0.0002,2]
[359450026,1746023445874,-2000.0,0.0002,2]
[359450029,1746023445893,-428.76117734,0.0002,2]
[359450032,1746023445910,-4897.37412631,0.0002,2]
[359450050,1746023446083,-4519.82086458,0.0002,2]
[359450052,1746023446096,-17500.0,0.0002,2]
[359450054,1746023446108,-5570.45453968,0.0002,2]
[359450057,1746023446119,-18376.77629069,0.0002,2]
[359450132,1746023448308,508.25,0.000328,60]
[359450134,1746023491168,-560.2677716,0.000198,2]
[359450135,1746023491192,-423.91326703,0.0001981,2]
[359450136,1746023491218,-3215.81896137,0.00019882,2]
[359450137,1746023515233,508.25,0.000328,60]
[359450138,1746023523142,508.25,0.000328,60]
[359450139,1746023526990,-300.0,0.00019864,2]
[359450140,1746023527016,-12200.0,0.00019865,2]
[359450141,1746023530775,508.25,0.000328,60]
[359450142,1746023544455,-9000.0,0.00019856,2]
[359450143,1746023553760,508.25,0.000328,60]
[359450144,1746023561994,508.25,0.000328,60]
[359450146,1746023580304,508.25,0.000328,60]
[359450147,1746023714708,-199.16489206,0.00019363,2]
[359450148,1746023716965,609.40413361,0.00019275,2]
[359450149,1746023716987,390.59586639,0.00019275,2]
[359450150,1746023718487,-163.022522,0.00019363,2]
[359450151,1746023726551,-461.56554848,0.00019363,2]
[359450152,1746023726605,-100000.0,0.0002,4]
[359450153,1746023727712,-100000.0,0.0002,4]
[359450154,1746023728668,-36119.48962825,0.0002,4]
[359450155,1746023728694,-2000.0,0.0002,4]
[359450156,1746023739125,163.022522,0.00019266,2]
[359450157,1746023775301,200.0,0.00019188,2]
[359450158,1746023827056,2246.38161161,0.00018853,2]
[359450159,1746023827089,3000.0,0.00018853,2]
[359450160,1746023827119,3000.0,0.00018853,2]
[359450161,1746023827150,3000.0,0.00018853,2]
[359450162,1746023827177,3000.0,0.00018853,2]
[359450163,1746023827211,3000.0,0.00018853,2]
[359450164,1746023827241,3000.0,0.00018853,2]
[359450165,1746023827272,3000.0,0.00018853,2]
[359450166,1746023827307,300.0,0.00018853,2]
[359450167,1746023827343,353.61838839,0.00018853,2]
[359450168,1746023836616,250.0,0.00017,2]
[359450169,1746023836717,197.36335904,0.00019999,5]
[359450170,1746023836751,1057.42830503,0.00019999,5]
[359450171,1746023836793,1284.03007921,0.00019999,5]
[359450172,1746023837704,300.0,0.00019,2]
[359450173,1746023852545,2700.0,0.000193,7]
[359450174,1746023854652,5500.0,0.000194,7]
[359450175,1746023856756,8300.0,0.000195,7]
[359450176,1746023857297,1190.36,0.00018833,2]
[359450177,1746023858862,11100.0,0.000196,7]
[359450178,1746023861002,13900.0,0.000197,7]
[359450179,1746023863106,2700.0,0.000198,7]
[359450180,1746023865240,2700.0,0.000199,7]
[359450181,1746023876090,150.0,0.00018833,2]
[359450182,1746023887501,486.07,0.00018825,2]
[359450183,1746023887755,486.07,0.0001883,2]
[359450184,1746023887951,486.07,0.00018835,2]
[359450185,1746023891910,486.07,0.0001884,2]
[359450186,1746023892349,486.07,0.00018845,2]
[359450187,1746023892588,486.07,0.0001885,2]
[359450188,1746023892821,486.07,0.00018855,2]
[359450189,1746023893043,486.07,0.0001886,2]
[359450190,1746023893258,486.07,0.00018865,2]
[359450191,1746023893501,486.07,0.0001887,2]
[359450192,1746023893711,486.07,0.00018875,2]
[359450193,1746023893943,486.07,0.0001888,2]
[359450194,1746023894172,486.07,0.00018885,2]
[359450195,1746023894382,486.07,0.0001889,2]
[359450196,1746023894610,486.07,0.00018895,2]
[359450197,1746023894809,486.07,0.000189,2]
[359450198,1746023895028,486.07,0.00018905,2]
[359450199,1746023895180,1972.79,0.00016908,2]
[359450200,1746023895270,486.07,0.0001891,2]
[359450201,1746023895399,1972.79,0.00019171,2]
[359450202,1746023895536,486.07,0.00018915,2]
[359450203,1746023895940,486.07,0.0001892,2]
[359450204,1746023924949,1485.19,0.00018816,2]
[359450205,1746023932613,247.9,0.00018816,2]
[359450206,1746023942335,250.0,0.00018816,7]
[359450207,1746023950832,226.92083,0.000283,41]
[359450208,1746023950912,226.92083,0.0002864,42]
[359450209,1746023950959,226.92084,0.0002926,43]
[359450210,1746023951063,226.92083,0.0002989,45]
[359450211,1746024000486,-187.43587134,0.00019363,2]
[359450212,1746024004594,2501.45,0.00018816,2]
[359450213,1746024006625,-188.66894,0.00019363,2]
[359450214,1746024009771,-161.33106,0.00019363,2]
[359450215,1746024014693,-166.61742077,0.00019363,2]
[359450216,1746024018543,-200.0,0.00019363,2]
[359450217,1746024018781,1069.97,0.00018972,2]
[359450218,1746024106592,2014.47454144,0.00032876,60]